bitfinex/quotes_BTCUSD_20220120
["timestamp","ask_amount","ask_price","bid_price","bid_amount"]
[1642716305574,0.120706,41449.0,41428.0,0.27542283]
[1642716305575,0.00123014,41451.0,41445.0,0.20565621]
[1642716305773,0.00123014,41451.0,41436.0,0.00122052]
[1642716306172,0.00120335,41454.0,41439.0,0.060325]
[1642716306375,0.00120335,41454.0,41441.0,0.00120916]
[1642716306376,0.014,41451.0,41441.0,0.00120916]
[1642716306873,0.014,41451.0,41447.0,0.17785213]
[1642716307172,0.014,41451.0,41444.0,0.00038412]
[1642716307771,0.17578689,41454.0,41444.0,0.00038412]
[1642716307973,0.17578689,41454.0,41445.0,0.0012353]
[1642716307974,0.385355,41453.0,41445.0,0.0012353]
[1642716308275,0.10120369,41454.0,41452.0,1.34253856]
[1642716308276,0.00120372,41454.0,41452.0,1.34253856]
[1642716308471,0.06320372,41454.0,41453.0,1.485355]
[1642716308673,3.72e-06,41454.0,41453.0,1.48658175]
[1642716308876,0.00468628,41464.0,41454.0,0.29124216]
[1642716309225,0.19514499,41471.0,41455.0,0.77235862]
[1642716309226,0.00995007,41471.0,41455.0,0.77235862]
[1642716309427,0.01001007,41475.0,41459.0,0.00125603]
[1642716309626,0.01001007,41475.0,41469.0,0.00123643]
[1642716309627,6e-05,41475.0,41469.0,0.00123643]
[1642716309825,6e-05,41475.0,41471.0,0.060278]
[1642716310028,6e-05,41475.0,41473.0,0.25859616]
[1642716310225,6e-05,41475.0,41474.0,1.485355]
[1642716310626,6e-05,41475.0,41471.0,0.009]
[1642716310627,0.45006,41475.0,41471.0,0.009]
[1642716310826,0.735355,41472.0,41471.0,0.009]
[1642716311026,0.385355,41472.0,41471.0,0.009]
[1642716311224,0.39530507,41472.0,41471.0,0.0001]
[1642716311430,0.18311836,41461.0,41454.0,0.3323824]
[1642716311630,0.18311836,41461.0,41454.0,0.20204797]
[1642716311827,0.18311836,41461.0,41451.0,0.00030467]
[1642716312025,0.1,41457.0,41451.0,0.00030467]
[1642716312225,0.39530507,41456.0,41451.0,0.00030467]
[1642716312426,0.05,41455.0,41451.0,0.00030467]
[1642716312626,0.385214,41454.0,41451.0,0.00030467]
[1642716312827,0.032,41461.0,41453.0,0.00127561]
[1642716313092,0.028165,41461.0,41460.0,1.29089181]
[1642716313291,0.028165,41461.0,41460.0,1.67611481]
[1642716313491,0.00465928,41468.0,41462.0,0.05984054]
[1642716313694,9.28e-06,41468.0,41465.0,0.12175377]
[1642716313894,9.28e-06,41468.0,41467.0,0.21790922]
[1642716314095,0.00626645,41490.0,41481.0,0.17725988]
[1642716314291,0.00626645,41490.0,41471.0,0.00128264]
[1642716314292,0.0012234,41489.0,41471.0,0.00128264]
[1642716314491,0.01205,41488.0,41471.0,0.00128264]
[1642716314691,0.01205,41488.0,41471.0,0.12181964]
[1642716314894,0.01205,41488.0,41480.0,0.29175022]
[1642716315094,0.01205,41488.0,41476.0,0.00120129]
[1642716315291,0.0012234,41489.0,41481.0,0.17318561]
[1642716315894,0.0012234,41489.0,41476.0,0.00120129]
[1642716315895,0.02845,41488.0,41476.0,0.00120129]
[1642716316195,0.01205,41496.0,41482.0,0.00128613]
[1642716316396,1.02232737,41519.0,41487.0,0.00123324]
[1642716316397,0.01205,41506.0,41487.0,0.00123324]
[1642716316600,0.01205,41506.0,41492.0,0.00082725]
[1642716316830,0.37258305,41499.0,41492.0,0.18170696]
[1642716317029,0.14209161,41502.0,41492.0,0.18170696]
[1642716317230,0.01325626,41509.0,41495.0,0.31408503]
[1642716317429,0.01325626,41509.0,41496.0,0.060233]
[1642716317629,0.01205,41509.0,41499.0,1.33766621]
[1642716317831,0.11120225,41500.0,41499.0,1.33766621]
[1642716318029,2.25e-06,41500.0,41499.0,1.486248]
[1642716318228,0.00480828,41506.0,41499.0,1.486248]
[1642716318430,0.14166664,41516.0,41503.0,0.060226]
[1642716318632,0.00121888,41514.0,41499.0,0.005]
[1642716318831,0.00123492,41507.0,41499.0,0.00465]
[1642716319030,0.384969,41503.0,41499.0,0.00465]
[1642716319332,1.34024542,41500.0,41499.0,5e-05]
[1642716319531,0.9,41499.0,41483.0,0.00125922]
[1642716319729,0.00123115,41493.0,41476.0,0.120516]
[1642716319932,0.00123115,41493.0,41469.0,0.9872]
[1642716319933,0.00121759,41487.0,41469.0,0.9872]
[1642716320131,0.01205,41487.0,41471.0,0.00125994]
[1642716320335,0.384969,41486.0,41482.0,0.00032507]
[1642716320571,0.2,41486.0,41482.0,0.00032507]
[1642716320773,0.2,41486.0,41471.0,0.120532]
[1642716320774,0.21205,41486.0,41471.0,0.120532]
[1642716320969,0.20125587,41486.0,41471.0,0.120532]
[1642716321174,0.01205,41485.0,41471.0,0.120532]
[1642716321372,0.00705,41485.0,41471.0,0.120532]
[1642716321571,0.10125587,41486.0,41471.0,0.120532]
[1642716321771,0.1,41486.0,41476.0,0.120517]
[1642716321974,0.01205,41499.0,41479.0,0.00124266]
[1642716322375,0.01205,41498.0,41486.0,0.29921281]
[1642716322571,0.15347033,41498.0,41486.0,0.29921281]
[1642716322772,0.00129742,41501.0,41486.0,0.50389564]
[1642716322773,0.01204,41500.0,41486.0,0.50389564]
[1642716322972,0.0164,41499.0,41486.0,0.50389564]
[1642716323174,0.06174,41498.0,41479.0,0.02924266]
[1642716323373,0.00128287,41495.0,41479.0,0.028]
[1642716323574,0.01272287,41495.0,41479.0,0.028]
[1642716323774,0.50261235,41501.0,41500.0,0.22065814]
[1642716323975,0.72552926,41501.0,41500.0,0.22065814]
[1642716324226,0.72522926,41501.0,41500.0,0.22065814]
[1642716324424,1.49292926,41501.0,41500.0,0.22065814]
[1642716324639,0.74262926,41501.0,41500.0,0.22065814]
[1642716324827,0.74232926,41501.0,41500.0,0.22065814]
[1642716325027,0.56621375,41501.0,41500.0,0.22065814]
[1642716325225,0.56591375,41501.0,41500.0,0.22065814]
[1642716325826,0.54791375,41501.0,41500.0,0.22065814]
[1642716326025,0.56279375,41501.0,41500.0,0.22065814]
[1642716326425,0.405969,41501.0,41500.0,0.22065814]
[1642716326626,0.432889,41501.0,41500.0,0.22065814]
[1642716326825,0.418009,41501.0,41500.0,0.22065814]
[1642716327025,0.418009,41501.0,41489.0,0.00128299]
[1642716327026,1.10575,41500.0,41489.0,2.99e-06]
[1642716327230,0.15,41490.0,41477.0,0.00122573]
[1642716327426,0.15,41490.0,41467.0,0.12053144]
[1642716327427,0.15124473,41488.0,41480.0,0.00045925]
[1642716327627,0.15,41483.0,41480.0,0.00045925]
[1642716327827,0.53619571,41481.0,41480.0,0.00045925]
[1642716328088,1.79923571,41481.0,41480.0,0.00045925]
[1642716328286,0.74823571,41481.0,41480.0,0.00045925]
[1642716328486,0.76023571,41481.0,41474.0,0.06]
[1642716328690,0.2,41479.0,41478.0,0.00035589]
[1642716328888,0.453821,41479.0,41478.0,0.00035589]
[1642716329089,1.866861,41479.0,41478.0,0.00035589]
[1642716329286,1.866861,41479.0,41474.0,0.06]
[1642716329287,0.584969,41475.0,41474.0,5.589e-05]
[1642716329487,0.83455552,41475.0,41474.0,5.589e-05]
[1642716329686,0.83455552,41475.0,41457.0,0.001]
[1642716329687,2.24586052,41475.0,41457.0,0.001]
[1642716329892,0.00124445,41464.0,41462.0,4.054e-05]
[1642716330088,0.611889,41463.0,41462.0,4.054e-05]
[1642716330290,1.835969,41463.0,41462.0,4.054e-05]
[1642716330488,0.634969,41463.0,41462.0,4.054e-05]
[1642716330888,1.985969,41463.0,41462.0,4.054e-05]
[1642716331088,1.2327448,41463.0,41462.0,0.70004054]
[1642716331306,0.0408,41475.0,41462.0,0.70004054]
[1642716331307,0.00128849,41476.0,41471.0,1.40409372]
[1642716331496,0.001238,41492.0,41490.0,0.00168817]
[1642716331497,0.5,41491.0,41490.0,0.00168817]
[1642716331729,1.251,41501.0,41490.0,0.22028482]
[1642716331925,1.251,41501.0,41490.0,0.00168817]
[1642716332325,1.25183261,41501.0,41492.0,0.00129133]
[1642716332530,0.00583261,41501.0,41500.0,0.2711202]
[1642716332726,0.00583261,41501.0,41500.0,0.27232869]
[1642716332924,0.00583261,41501.0,41500.0,0.47340255]
[1642716333324,0.06107443,41520.0,41500.0,1.57340255]
[1642716333528,0.00120339,41503.0,41502.0,0.3163208]
[1642716333725,0.00120339,41503.0,41502.0,2.02587226]
[1642716333926,0.589262,41522.0,41516.0,0.2272725]
[1642716334127,0.589262,41522.0,41509.0,0.38313571]
[1642716334325,0.589262,41522.0,41516.0,2.67250115]
[1642716334524,0.589262,41522.0,41516.0,2.67350115]
[1642716334729,0.589262,41522.0,41516.0,0.001]
[1642716334730,0.32291918,41521.0,41516.0,0.001]
[1642716334926,0.44419261,41521.0,41516.0,0.001]
[1642716335488,1.251,41518.0,41504.0,0.32291918]
[1642716335688,0.22366679,41517.0,41494.0,0.32291918]
[1642716335890,0.22366679,41517.0,41494.0,0.00121841]
[1642716335891,0.00126064,41511.0,41494.0,0.00121841]
[1642716336290,0.00126064,41511.0,41498.0,0.2232259]
[1642716336491,0.00826064,41511.0,41498.0,0.1932259]
[1642716336691,0.00826064,41511.0,41504.0,0.3087151]
[1642716336892,0.007,41511.0,41504.0,0.3087151]
[1642716337091,0.00082055,41511.0,41510.0,0.00123218]
[1642716337290,0.00328137,41521.0,41510.0,0.00123218]
[1642716337490,0.00328137,41521.0,41516.0,0.00128531]
[1642716337693,0.58754337,41522.0,41506.0,1.42291918]
[1642716337889,0.58754337,41522.0,41517.0,0.21100096]
[1642716338291,0.16754337,41522.0,41518.0,0.26341293]
[1642716338493,0.17454337,41522.0,41520.0,0.00126956]
[1642716339327,0.17444337,41522.0,41520.0,0.00126956]
[1642716339527,0.16944337,41522.0,41520.0,0.00126956]
[1642716339827,0.16244337,41522.0,41520.0,0.00126956]
[1642716340229,0.16244337,41522.0,41521.0,1.220394]
[1642716340433,0.14864337,41522.0,41509.0,0.20794597]
[1642716340631,0.16564337,41522.0,41520.0,0.004]
[1642716340830,0.16689359,41522.0,41520.0,0.004]
[1642716341027,0.16689359,41522.0,41498.0,0.060236]
[1642716341028,0.13593185,41508.0,41498.0,0.060236]
[1642716341228,0.13593185,41508.0,41495.0,0.00126639]
[1642716341429,0.00124832,41511.0,41495.0,0.00126639]
[1642716341827,0.00124832,41511.0,41499.0,0.0005195]
[1642716342028,0.00124832,41511.0,41502.0,0.060229]
[1642716342229,1.1,41521.0,41499.0,0.0005195]
[1642716342230,1.1,41521.0,41501.0,0.00123327]
[1642716342428,0.1456044,41519.0,41512.0,0.25388128]
[1642716342628,0.0012214,41519.0,41508.0,0.1925158]
[1642716342831,0.0012214,41519.0,41505.0,0.32412144]
[1642716343080,0.0012214,41519.0,41513.0,0.0005192]
[1642716343878,1.08782258,41521.0,41513.0,0.0005192]
[1642716344078,0.14864337,41522.0,41512.0,0.58600759]
[1642716344279,0.14864337,41522.0,41514.0,0.00051919]
[1642716344679,0.15264337,41522.0,41514.0,0.00051919]
[1642716344882,0.15264337,41522.0,41517.0,0.00127485]
[1642716345081,0.15264337,41522.0,41521.0,0.00127822]
[1642716345381,0.14735328,41522.0,41521.0,1.14207822]
[1642716345578,0.14735328,41522.0,41521.0,1.58744322]
[1642716345783,0.13335328,41522.0,41521.0,1.58744322]
[1642716345978,0.13335328,41522.0,41521.0,0.04207822]
[1642716346179,0.13335328,41522.0,41521.0,0.0408]
[1642716346382,0.29790361,41522.0,41517.0,0.00051912]
[1642716346582,0.29790361,41522.0,41496.0,0.01641]
[1642716346583,0.353683,41521.0,41496.0,0.01641]
[1642716346823,0.353683,41521.0,41519.0,0.00039784]
[1642716347026,0.32408396,41521.0,41519.0,0.00039784]
[1642716347222,0.30290361,41522.0,41519.0,0.00039784]
[1642716347421,1.439568,41521.0,41507.0,0.26907031]
[1642716347623,0.13416303,41512.0,41507.0,0.26907031]
[1642716347821,0.36523319,41518.0,41507.0,0.26907031]
[1642716348024,0.00128536,41520.0,41507.0,0.26907031]
[1642716348222,1.42862586,41521.0,41514.0,0.25322206]
[1642716348422,0.32188913,41520.0,41504.0,0.00125618]
[1642716348625,0.32788913,41520.0,41507.0,0.03]
[1642716348823,0.15124085,41515.0,41507.0,0.03]
[1642716349923,0.38777062,41514.0,41501.0,0.00128692]
[1642716350323,0.15124085,41515.0,41509.0,0.00051849]
[1642716350579,0.3089712,41514.0,41493.0,0.53970276]
[1642716350779,0.02366679,41513.0,41494.0,0.00126105]
[1642716350977,0.02366679,41513.0,41493.0,0.41922976]
[1642716350978,0.02366679,41513.0,41499.0,0.00126105]
[1642716351178,0.002,41514.0,41499.0,0.00126105]
[1642716351677,0.002,41514.0,41510.0,0.3133753]
[1642716351879,0.0002,41517.0,41510.0,0.3133753]
[1642716352079,0.0002,41517.0,41516.0,0.00129598]
[1642716352276,0.0002,41517.0,41516.0,0.00109598]
[1642716352477,0.0002,41527.0,41521.0,0.00123036]
[1642716352478,0.12423043,41522.0,41521.0,0.00123036]
[1642716353081,0.3069712,41541.0,41521.0,0.31549647]
[1642716353277,0.52994344,41557.0,41521.0,0.31549647]
[1642716353278,1.251,41542.0,41522.0,0.3069712]
[1642716353477,1.251,41542.0,41521.0,0.00123036]
[1642716353679,0.18055118,41526.0,41512.0,0.42739723]
[1642716353877,0.18055118,41526.0,41514.0,0.00127747]
[1642716354076,0.1,41525.0,41514.0,0.00127747]
[1642716354529,0.1,41525.0,41503.0,0.120444]
[1642716354530,0.106,41525.0,41510.0,0.00121695]
[1642716355128,0.006,41525.0,41515.0,0.00040206]
[1642716355327,0.006,41525.0,41515.0,0.18064352]
[1642716355527,0.006,41525.0,41518.0,0.30234002]
[1642716355731,0.14025433,41528.0,41518.0,0.30234002]
[1642716355929,0.00120593,41536.0,41522.0,0.20742469]
[1642716356129,0.00120593,41536.0,41522.0,0.26762992]
[1642716356328,0.02515498,41541.0,41522.0,0.20870151]
[1642716356528,0.00120309,41528.0,41523.0,0.29281854]
[1642716356729,0.00120309,41528.0,41522.0,0.20870151]
[1642716356730,0.00090309,41528.0,41522.0,0.20870151]
[1642716356928,0.00060309,41528.0,41526.0,0.27745388]
[1642716357331,0.042,41536.0,41526.0,0.27745388]
[1642716357332,0.042,41536.0,41527.0,3.3330188]
[1642716357530,0.0414,41536.0,41528.0,0.30816898]
[1642716357728,0.0414,41536.0,41527.0,3.33426066]
[1642716357980,0.13914253,41540.0,41527.0,0.95124186]
[1642716358185,0.13914253,41540.0,41527.0,0.00124186]
[1642716358580,0.13914253,41540.0,41527.0,0.01224186]
[1642716358581,0.30816898,41539.0,41527.0,0.01224186]
[1642716358782,0.30816898,41539.0,41527.0,0.011]
[1642716358783,1.251,41538.0,41527.0,0.011]
[1642716358981,0.14714253,41540.0,41527.0,0.011]
[1642716359180,0.5,41528.0,41527.0,0.011]
[1642716359382,0.49,41528.0,41527.0,0.011]
[1642716359580,1.09,41528.0,41527.0,0.0001]
[1642716360084,1.44222141,41528.0,41524.0,0.00040347]
[1642716360383,0.18451621,41527.0,41524.0,0.00040347]
[1642716360982,0.18451621,41527.0,41517.0,0.25679384]
[1642716361181,0.18451621,41527.0,41523.0,0.00054119]
[1642716361381,0.18451621,41527.0,41524.0,0.00110339]
[1642716361581,0.18451621,41527.0,41523.0,2.458e-05]
[1642716361582,0.51690609,41527.0,41523.0,2.458e-05]
[1642716361838,0.51690609,41527.0,41495.0,0.25725992]
[1642716361839,1.160239,41526.0,41505.0,0.00127602]
[1642716362038,0.00122023,41522.0,41505.0,0.00127602]
[1642716362238,0.00122023,41522.0,41511.0,0.01641]
[1642716362239,0.06024,41520.0,41511.0,0.01641]
[1642716362435,1.251,41519.0,41500.0,0.02846]
[1642716362636,0.30816898,41518.0,41510.0,0.01641]
[1642716362838,0.15646343,41511.0,41510.0,0.01641]
[1642716363236,0.15646343,41511.0,41498.0,0.00123545]
[1642716363237,0.15646343,41511.0,41504.0,0.21205]
[1642716363437,1.1,41510.0,41504.0,0.21205]
[1642716363741,0.0408,41514.0,41506.0,0.32288127]
[1642716363939,0.0408,41514.0,41513.0,0.263003]
[1642716364336,0.00122836,41528.0,41513.0,0.263003]
[1642716364536,0.06145236,41528.0,41515.0,0.2153655]
[1642716364736,0.17989883,41525.0,41513.0,0.263003]
[1642716364938,0.32519489,41524.0,41513.0,0.263003]
[1642716365237,0.17989883,41525.0,41515.0,0.2]
[1642716365690,0.060224,41527.0,41524.0,0.19332769]
[1642716365892,0.00080201,41525.0,41524.0,0.19332769]
[1642716366091,0.00080201,41525.0,41523.0,0.0012083]
[1642716366295,1.54300972,41532.0,41523.0,0.0012083]
[1642716366494,1.54300972,41532.0,41516.0,0.3094596]
[1642716366691,1.54300972,41532.0,41516.0,0.00129062]
[1642716366692,0.027,41525.0,41516.0,0.00129062]
[1642716366892,0.060229,41524.0,41516.0,0.00129062]
[1642716367093,0.060229,41524.0,41515.0,0.2]
[1642716367094,1.101004,41516.0,41515.0,0.2]
[1642716367292,1.101004,41516.0,41496.0,0.22211776]
[1642716367293,0.00151,41515.0,41504.0,0.00128868]
[1642716367493,0.1,41509.0,41504.0,0.00128868]
[1642716367692,0.1,41509.0,41500.0,0.0001]
[1642716367892,0.060253,41507.0,41500.0,0.0001]
[1642716368094,0.1,41509.0,41503.0,0.25437702]
[1642716368491,0.00151,41515.0,41503.0,0.45178804]
[1642716368693,0.041,41509.0,41504.0,0.30946269]
[1642716368894,0.041,41509.0,41507.0,0.26738223]
[1642716369341,0.041,41509.0,41508.0,1.40939189]
[1642716369539,0.041,41509.0,41508.0,1.10122291]
[1642716369738,0.001004,41516.0,41508.0,1.10122291]
[1642716369938,0.001004,41516.0,41515.0,0.17473883]
[1642716370138,0.001004,41516.0,41508.0,1.10122291]
[1642716370339,0.001004,41516.0,41510.0,0.06021981]
[1642716370541,0.001004,41516.0,41508.0,0.00922291]
[1642716370741,0.012004,41516.0,41510.0,0.00056225]
[1642716370942,0.112004,41516.0,41510.0,0.00056225]
[1642716371146,0.30861192,41515.0,41510.0,0.00056225]
[1642716371341,0.16320694,41514.0,41510.0,0.00056225]
[1642716371741,0.01637,41513.0,41508.0,0.008]
[1642716371941,0.060245,41512.0,41510.0,0.00056225]
[1642716372141,0.16320694,41514.0,41510.0,0.00056225]
[1642716372542,0.17520694,41514.0,41510.0,0.00056225]
[1642716372745,0.1,41516.0,41510.0,0.00056225]
[1642716372981,0.260237,41516.0,41508.0,0.00128611]
[1642716373184,0.18268637,41515.0,41510.0,0.00056225]
[1642716373582,0.18268637,41515.0,41500.0,0.00131508]
[1642716373583,1.1,41514.0,41500.0,0.00131508]
[1642716373983,0.060245,41514.0,41503.0,0.27567799]
[1642716374585,0.071245,41514.0,41503.0,0.27567799]
[1642716374786,0.14514857,41512.0,41503.0,0.27567799]
[1642716375086,0.060247,41510.0,41503.0,0.27567799]
[1642716375285,0.060247,41510.0,41503.0,0.27067799]
[1642716375685,0.05995738,41510.0,41503.0,0.27067799]
[1642716376487,0.05995738,41510.0,41500.0,0.00131508]
[1642716376725,0.07095738,41510.0,41504.0,0.00055854]
[1642716376924,0.12095738,41510.0,41504.0,0.00055854]
[1642716377119,0.061,41510.0,41504.0,0.00055854]
[1642716377321,0.061,41510.0,41500.0,0.30207683]
[1642716377522,0.011,41510.0,41499.0,0.00129488]
[1642716377823,0.011,41510.0,41494.0,0.3047813]
[1642716377824,0.05,41505.0,41494.0,0.3047813]
[1642716378024,0.05,41505.0,41493.0,0.41922976]
[1642716378025,1.362,41510.0,41493.0,0.41922976]
[1642716378224,0.060254,41503.0,41493.0,0.41922976]
[1642716379024,0.24,41505.0,41493.0,0.41922976]
[1642716379329,0.1,41499.0,41493.0,0.41122976]
[1642716379525,0.05,41498.0,41493.0,0.41122976]
[1642716379723,0.05,41498.0,41493.0,0.70922854]
[1642716379923,0.1,41502.0,41493.0,0.70922854]
[1642716380227,0.00080037,41500.0,41496.0,0.20204203]
[1642716380475,0.00080037,41500.0,41499.0,0.00126334]
[1642716381277,0.033,41502.0,41499.0,0.00126334]
[1642716381478,0.03411543,41502.0,41499.0,0.00126334]
[1642716381679,0.03411543,41502.0,41501.0,0.00124064]
[1642716381986,0.00445911,41526.0,41501.0,0.00124064]
[1642716381987,0.00445911,41526.0,41517.0,0.19349184]
[1642716382181,0.00445911,41526.0,41521.0,0.00121183]
[1642716382379,0.00445911,41526.0,41524.0,0.68518343]
[1642716382380,0.5,41525.0,41524.0,0.68518343]
[1642716382683,0.00445911,41526.0,41521.0,0.00121183]
[1642716382684,0.048,41526.0,41521.0,0.00121183]
[1642716383480,0.048,41526.0,41515.0,0.00083275]
[1642716383881,0.048,41526.0,41517.0,0.06022256]
[1642716384229,0.048,41526.0,41525.0,0.00126497]
[1642716384428,0.00124256,41541.0,41525.0,0.00126497]
[1642716384429,0.060212,41533.0,41525.0,0.00126497]
[1642716384636,0.066,41526.0,41525.0,0.00126497]
[1642716385130,0.05823736,41526.0,41515.0,0.31284496]
[1642716385330,0.05823736,41526.0,41515.0,0.0012228]
[1642716385528,0.21272494,41526.0,41515.0,0.0012228]
[1642716385930,0.31290525,41525.0,41506.0,0.60113395]
[1642716386137,0.00122844,41519.0,41506.0,0.60113395]
[1642716386333,0.00122844,41519.0,41506.0,0.59984706]
[1642716386334,0.00129997,41515.0,41506.0,0.59984706]
[1642716386728,1.25182726,41507.0,41506.0,0.59984706]
[1642716386928,0.00129997,41515.0,41506.0,0.59984706]
[1642716387129,0.1,41507.0,41506.0,0.59984706]
[1642716387529,0.05,41507.0,41506.0,0.59984706]
[1642716387986,0.2372892,41509.0,41506.0,0.59984706]
[1642716388186,0.05,41509.0,41506.0,0.59984706]
[1642716388388,0.0012033,41513.0,41506.0,0.59984706]
[1642716388389,0.110249,41508.0,41506.0,0.59984706]
[1642716388987,0.060249,41508.0,41506.0,0.59984706]
[1642716389390,0.110249,41508.0,41506.0,0.59984706]
[1642716389588,0.018,41509.0,41507.0,0.30028338]
[1642716389990,0.00120333,41509.0,41507.0,0.30028338]
[1642716390189,0.00120333,41509.0,41508.0,1.34673261]
[1642716390391,0.06261303,41525.0,41516.0,0.18012408]
[1642716390591,0.06261303,41525.0,41513.0,0.00126823]
[1642716390592,0.14202202,41525.0,41513.0,0.00126823]
[1642716390790,0.14202202,41525.0,41517.0,0.06021876]
[1642716390791,0.20224302,41525.0,41517.0,0.06021876]
[1642716390992,0.060221,41525.0,41517.0,0.06021876]
[1642716392034,0.060221,41525.0,41516.0,0.37679074]
[1642716392238,0.18532209,41524.0,41516.0,0.37679074]
[1642716392536,0.060225,41522.0,41516.0,0.37679074]
[1642716393035,0.00066835,41523.0,41516.0,0.37679074]
[1642716393234,0.2,41524.0,41516.0,0.37679074]
[1642716393434,0.015,41525.0,41523.0,0.24286138]
[1642716393634,0.01,41525.0,41523.0,0.24286138]
[1642716394035,0.00429504,41527.0,41523.0,0.24286138]
[1642716394233,0.00429504,41527.0,41522.0,0.12041784]
[1642716394434,0.00120403,41533.0,41522.0,0.12041784]
[1642716394636,0.035,41527.0,41522.0,0.12041784]
[1642716394935,0.060219,41526.0,41514.0,0.00126422]
[1642716395138,0.14856554,41522.0,41514.0,0.12170624]
[1642716395579,0.03729923,41527.0,41514.0,0.12170624]
[1642716395779,0.03622537,41527.0,41514.0,0.12170624]
[1642716395982,0.060227,41522.0,41514.0,0.72170624]
[1642716396179,0.060227,41522.0,41514.0,0.12170624]
[1642716396382,0.00121757,41521.0,41508.0,0.12046108]
[1642716396581,0.001256,41522.0,41506.0,0.59984706]
[1642716396779,0.009256,41522.0,41506.0,0.59984706]
[1642716397279,0.24000036,41515.0,41508.0,0.26749463]
[1642716397479,0.05,41518.0,41510.0,0.06023372]
[1642716397681,0.05,41518.0,41508.0,0.49513119]
[1642716397879,0.05,41518.0,41510.0,0.00121516]
[1642716398079,0.008,41522.0,41510.0,0.00121516]
[1642716398278,0.008,41522.0,41511.0,0.00042228]
[1642716398279,0.06023,41518.0,41511.0,0.00042228]
[1642716398478,0.4,41515.0,41508.0,0.26451191]
[1642716398680,0.0574771,41516.0,41508.0,0.26451191]
[1642716398879,0.1074771,41516.0,41508.0,0.26451191]
[1642716399079,0.0574771,41516.0,41508.0,0.26451191]
[1642716399326,0.110228,41519.0,41511.0,0.06022932]
[1642716399526,0.05,41519.0,41511.0,0.06022932]
[1642716399725,0.05,41519.0,41516.0,0.25253736]
[1642716399926,0.05,41522.0,41516.0,0.25253736]
[1642716400128,0.5,41521.0,41518.0,0.00123314]
[1642716400329,2.23598446,41534.0,41518.0,0.00123314]
[1642716400330,1.54300972,41534.0,41518.0,0.00123314]
[1642716400527,1.54300972,41534.0,41524.0,0.19072911]
[1642716401126,1.54300972,41534.0,41528.0,0.30383874]
[1642716401326,1.68580617,41534.0,41528.0,0.30383874]
[1642716401727,1.68580617,41534.0,41529.0,0.06020164]
[1642716401927,1.68080617,41534.0,41529.0,0.06020164]
[1642716402327,1.68080617,41534.0,41514.0,0.180213]
[1642716402528,0.3111509,41533.0,41517.0,0.00121066]
[1642716402727,0.00122287,41531.0,41517.0,0.00121066]
[1642716402990,0.00129505,41526.0,41514.0,0.12]
[1642716403189,0.06152505,41526.0,41514.0,0.12]
[1642716403388,0.40967559,41525.0,41514.0,0.12]
[1642716403591,0.18755862,41518.0,41514.0,0.12]
[1642716403990,0.23755862,41518.0,41514.0,0.12]
[1642716404387,0.23755862,41518.0,41514.0,0.115]
[1642716404587,0.23755862,41518.0,41512.0,0.38218355]
[1642716404789,0.21155862,41518.0,41512.0,0.38218355]
[1642716404987,0.31155862,41518.0,41512.0,0.38218355]
[1642716405189,0.36178962,41518.0,41512.0,0.32195444]
[1642716405387,0.174231,41518.0,41512.0,0.32195444]
[1642716405788,0.084231,41518.0,41512.0,0.32195444]
[1642716405991,0.060231,41518.0,41512.0,0.32195444]
[1642716406191,0.060231,41518.0,41510.0,0.06023172]
[1642716406390,0.060231,41518.0,41509.0,0.00058977]
[1642716406391,0.14045693,41514.0,41509.0,0.00058977]
[1642716406591,0.38045392,41513.0,41505.0,0.50577522]
[1642716406835,0.43045392,41513.0,41509.0,0.00058977]
[1642716407036,0.49070392,41513.0,41509.0,0.00058977]
[1642716407233,0.43045392,41513.0,41509.0,0.00058977]
[1642716407532,0.060242,41512.0,41509.0,0.00058977]
[1642716407735,0.060242,41512.0,41505.0,0.50577522]
[1642716407736,0.05,41511.0,41505.0,0.50577522]
[1642716407934,0.060242,41512.0,41509.0,0.00058981]
[1642716408135,0.8,41511.0,41506.0,0.45963687]
[1642716408533,0.795,41511.0,41510.0,0.26769442]
[1642716408743,0.821,41511.0,41510.0,0.26769442]
[1642716408935,0.026,41511.0,41510.0,0.26769442]
[1642716409334,0.026,41511.0,41510.0,0.47973692]
[1642716410035,0.4,41520.0,41510.0,0.47973692]
[1642716410236,0.4,41520.0,41517.0,0.26487428]
[1642716410476,0.4,41520.0,41517.0,0.49215658]
[1642716410680,0.454,41520.0,41517.0,0.49215658]
[1642716410877,0.454,41520.0,41517.0,0.61259198]
[1642716411476,0.454,41520.0,41517.0,0.61382714]
[1642716411678,0.4537,41520.0,41517.0,0.61382714]
[1642716411881,0.4537,41520.0,41517.0,0.67404028]
[1642716412077,0.3997,41520.0,41517.0,0.67404028]
[1642716412276,0.3285,41520.0,41517.0,0.67404028]
[1642716412678,0.3335,41520.0,41517.0,0.67404028]
[1642716412879,0.3235,41520.0,41518.0,0.00122645]
[1642716414078,0.3086,41520.0,41518.0,0.18183681]
[1642716414729,0.3146,41520.0,41518.0,0.18183681]
[1642716415831,0.05,41519.0,41517.0,0.06021314]
[1642716416031,0.05,41519.0,41515.0,0.12044017]
[1642716416228,0.05,41519.0,41509.0,0.00127464]
[1642716416430,0.14024661,41514.0,41507.0,0.00058564]
[1642716417227,0.14024661,41514.0,41513.0,0.34483819]
[1642716417429,0.00120152,41518.0,41513.0,0.34483819]
[1642716417830,0.005,41519.0,41513.0,0.34483819]
[1642716418084,0.005,41519.0,41515.0,0.18195725]
[1642716418283,0.005,41519.0,41514.0,0.06022559]
[1642716418489,0.58666515,41520.0,41514.0,0.06022559]
[1642716418683,0.02,41519.0,41508.0,0.00124864]
[1642716418883,0.3850361,41519.0,41508.0,0.00124864]
[1642716419084,0.5350361,41519.0,41508.0,0.00124864]
[1642716419283,0.17,41519.0,41508.0,0.00124864]
[1642716419585,0.14563974,41510.0,41508.0,0.00124864]
[1642716419784,0.20588274,41510.0,41503.0,0.06023985]
[1642716419983,0.060243,41510.0,41509.0,0.30564328]
[1642716420189,0.24203313,41510.0,41509.0,0.30564328]
[1642716420384,0.24203313,41510.0,41507.0,0.00058569]
[1642716420684,0.26403313,41510.0,41507.0,0.00058569]
[1642716420883,0.26403313,41510.0,41506.0,0.45963687]
[1642716421085,0.26403313,41510.0,41506.0,0.46022262]
[1642716421282,0.26403313,41510.0,41506.0,0.45522262]
[1642716421933,0.060242,41509.0,41506.0,0.45522262]
[1642716422132,0.060242,41509.0,41506.0,0.45463687]
[1642716422133,0.00128536,41508.0,41506.0,0.45463687]